Department Family,Entity,Date,Expense Type,Expense Area,Supplier,SME,Transaction Number,Amount,Description,Expenditure Type
HM Land Registry,HM Land Registry,17/02/2017,Stationery National Contracts,Birkenhead Office,Banner Business Services Ltd,Large,1173670,"1,422.54",Stationery,Administration
HM Land Registry,HM Land Registry,17/02/2017,Stationery National Contracts,Central Operations Group,Banner Business Services Ltd,Large,1173670,435.64,Stationery,Administration
HM Land Registry,HM Land Registry,17/02/2017,Stationery National Contracts,Chief Executives Office,Banner Business Services Ltd,Large,1173670,36.15,Stationery,Administration
HM Land Registry,HM Land Registry,17/02/2017,Stationery National Contracts,Coventry Office,Banner Business Services Ltd,Large,1173670,403.11,Stationery,Administration
HM Land Registry,HM Land Registry,17/02/2017,Stationery National Contracts,Croydon Office,Banner Business Services Ltd,Large,1173670,871.62,Stationery,Administration
HM Land Registry,HM Land Registry,17/02/2017,Stationery National Contracts,Durham Office,Banner Business Services Ltd,Large,1173670,"2,527.47",Stationery,Administration
HM Land Registry,HM Land Registry,17/02/2017,Stationery National Contracts,Finance Group,Banner Business Services Ltd,Large,1173670,59.41,Stationery,Administration
HM Land Registry,HM Land Registry,17/02/2017,Stationery National Contracts,Fylde Office,Banner Business Services Ltd,Large,1173670,"1,437.50",Stationery,Administration
HM Land Registry,HM Land Registry,17/02/2017,Stationery National Contracts,Gloucester Office,Banner Business Services Ltd,Large,1173670,764.50,Stationery,Administration
HM Land Registry,HM Land Registry,17/02/2017,Stationery National Contracts,Hull Office,Banner Business Services Ltd,Large,1173670,"3,435.91",Stationery,Administration
HM Land Registry,HM Land Registry,17/02/2017,Stationery National Contracts,Internal Solutions Group,Banner Business Services Ltd,Large,1173670,389.13,Stationery,Administration
HM Land Registry,HM Land Registry,17/02/2017,Stationery National Contracts,IS Service Delivery,Banner Business Services Ltd,Large,1173670,"5,053.70",Stationery,Administration
HM Land Registry,HM Land Registry,17/02/2017,Stationery National Contracts,Land Charges,Banner Business Services Ltd,Large,1173670,235.16,Stationery,Administration
HM Land Registry,HM Land Registry,17/02/2017,Stationery National Contracts,Leicester Office,Banner Business Services Ltd,Large,1173670,995.96,Stationery,Administration
HM Land Registry,HM Land Registry,17/02/2017,Stationery National Contracts,Local Land Charges,Banner Business Services Ltd,Large,1173670,50.82,Stationery,Administration
HM Land Registry,HM Land Registry,17/02/2017,Stationery National Contracts,Marketing Services Team,Banner Business Services Ltd,Large,1173670,61.50,Stationery,Administration
HM Land Registry,HM Land Registry,17/02/2017,Stationery National Contracts,Nottingham Office,Banner Business Services Ltd,Large,1173670,"1,909.63",Stationery,Administration
HM Land Registry,HM Land Registry,17/02/2017,Stationery National Contracts,Peterborough Office,Banner Business Services Ltd,Large,1173670,809.85,Stationery,Administration
HM Land Registry,HM Land Registry,17/02/2017,Stationery National Contracts,Plymouth Office,Banner Business Services Ltd,Large,1173670,980.35,Stationery,Administration
HM Land Registry,HM Land Registry,17/02/2017,Stationery National Contracts,Projects and Programme Centre,Banner Business Services Ltd,Large,1173670,78.43,Stationery,Administration
HM Land Registry,HM Land Registry,17/02/2017,Stationery National Contracts,Telford Office,Banner Business Services Ltd,Large,1173670,745.23,Stationery,Administration
HM Land Registry,HM Land Registry,17/02/2017,Stationery National Contracts,Wales Office,Banner Business Services Ltd,Large,1173670,"3,369.22",Stationery,Administration
HM Land Registry,HM Land Registry,17/02/2017,Stationery National Contracts,Weymouth Office,Banner Business Services Ltd,Large,1173670,567.75,Stationery,Administration
HM Land Registry,HM Land Registry,17/02/2017,Stationery National Contracts,Organisation & Employee Development,Banner Business Services Ltd,Large,1173670,19.49,Stationery,Administration
HM Land Registry,HM Land Registry,01/02/2017,Data Network Lines,IS Service Delivery,British Telecommunications Plc,Large,1171596,"2,033.80",Data Network Lines,Administration
HM Land Registry,HM Land Registry,01/02/2017,Telephone Costs,IS Service Delivery,British Telecommunications Plc,Large,1171596,"118,948.15",Telephone Costs,Administration
HM Land Registry,HM Land Registry,07/02/2017,Data Network Lines,IS Service Delivery,British Telecommunications Plc,Large,1170808,"35,721.33",Data Network Lines,Administration
HM Land Registry,HM Land Registry,02/02/2017,Computer Equipment Consumables,IS Service Delivery,Canon (UK) Ltd,Large,1172000,"35,293.16",Computer Equipment Consumables,Administration
HM Land Registry,HM Land Registry,14/02/2017,Facilities - Quoted & Ad Hoc Works,Birkenhead Office,Carillion Services Ltd,Large,1173158,"17,164.27",Facilities - Quoted & Ad Hoc Works,Administration
HM Land Registry,HM Land Registry,14/02/2017,Grounds Maintenance,Birkenhead Office,Carillion Services Ltd,Large,1173158,290.50,Grounds Maintenance,Administration
HM Land Registry,HM Land Registry,14/02/2017,Waste Disposal,Birkenhead Office,Carillion Services Ltd,Large,1173158,178.86,Waste Disposal,Administration
HM Land Registry,HM Land Registry,14/02/2017,Facilities - Quoted & Ad Hoc Works,Coventry Office,Carillion Services Ltd,Large,1173158,155.91,Facilities - Quoted & Ad Hoc Works,Administration
HM Land Registry,HM Land Registry,14/02/2017,"FF&F:Purchases <1,000",Coventry Office,Carillion Services Ltd,Large,1173158,"1,028.06","Furniture, Fixtures & Fittings: Purchases less than 1,000.00",Administration
HM Land Registry,HM Land Registry,14/02/2017,Facilities - Quoted & Ad Hoc Works,Croydon Office,Carillion Services Ltd,Large,1173158,"6,171.56",Facilities - Quoted & Ad Hoc Works,Administration
HM Land Registry,HM Land Registry,14/02/2017,"FF&F:Purchases <1,000",Croydon Office,Carillion Services Ltd,Large,1173158,371.00,"Furniture, Fixtures & Fittings: Purchases less than 1,000.00",Administration
HM Land Registry,HM Land Registry,14/02/2017,Facilities - Quoted & Ad Hoc Works,Director of Information Systems,Carillion Services Ltd,Large,1173158,"9,816.40",Facilities - Quoted & Ad Hoc Works,Administration
HM Land Registry,HM Land Registry,14/02/2017,Grounds Maintenance,Director of Information Systems,Carillion Services Ltd,Large,1173158,653.63,Grounds Maintenance,Administration
HM Land Registry,HM Land Registry,14/02/2017,Waste Disposal,Director of Information Systems,Carillion Services Ltd,Large,1173158,311.83,Waste Disposal,Administration
HM Land Registry,HM Land Registry,14/02/2017,"FF&F:Purchases <1,000",Director of Information Systems,Carillion Services Ltd,Large,1173158,140.17,"Furniture, Fixtures & Fittings: Purchases less than 1,000.00",Administration
HM Land Registry,HM Land Registry,14/02/2017,Facilities - Quoted & Ad Hoc Works,Durham Office,Carillion Services Ltd,Large,1173158,"21,702.91",Facilities - Quoted & Ad Hoc Works,Administration
HM Land Registry,HM Land Registry,14/02/2017,Grounds Maintenance,Durham Office,Carillion Services Ltd,Large,1173158,518.75,Grounds Maintenance,Administration
HM Land Registry,HM Land Registry,14/02/2017,Waste Disposal,Durham Office,Carillion Services Ltd,Large,1173158,505.56,Waste Disposal,Administration
HM Land Registry,HM Land Registry,14/02/2017,"FF&F:Purchases <1,000",Durham Office,Carillion Services Ltd,Large,1173158,"5,212.60","Furniture, Fixtures & Fittings: Purchases less than 1,000.00",Administration
HM Land Registry,HM Land Registry,14/02/2017,Facilities - Quoted & Ad Hoc Works,Fylde Office,Carillion Services Ltd,Large,1173158,"3,241.15",Facilities - Quoted & Ad Hoc Works,Administration
HM Land Registry,HM Land Registry,14/02/2017,Grounds Maintenance,Fylde Office,Carillion Services Ltd,Large,1173158,415.00,Grounds Maintenance,Administration
HM Land Registry,HM Land Registry,14/02/2017,"FF&F:Purchases <1,000",Fylde Office,Carillion Services Ltd,Large,1173158,644.48,"Furniture, Fixtures & Fittings: Purchases less than 1,000.00",Administration
HM Land Registry,HM Land Registry,14/02/2017,Facilities - Quoted & Ad Hoc Works,Gloucester Computer Centre,Carillion Services Ltd,Large,1173158,"3,742.45",Facilities - Quoted & Ad Hoc Works,Administration
HM Land Registry,HM Land Registry,14/02/2017,Facilities - Quoted & Ad Hoc Works,Gloucester Office,Carillion Services Ltd,Large,1173158,"24,616.71",Facilities - Quoted & Ad Hoc Works,Administration
HM Land Registry,HM Land Registry,14/02/2017,Grounds Maintenance,Gloucester Office,Carillion Services Ltd,Large,1173158,643.25,Grounds Maintenance,Administration
HM Land Registry,HM Land Registry,14/02/2017,Waste Disposal,Gloucester Office,Carillion Services Ltd,Large,1173158,178.86,Waste Disposal,Administration
HM Land Registry,HM Land Registry,14/02/2017,"FF&F:Purchases <1,000",Gloucester Office,Carillion Services Ltd,Large,1173158,786.17,"Furniture, Fixtures & Fittings: Purchases less than 1,000.00",Administration
HM Land Registry,HM Land Registry,14/02/2017,Facilities - Quoted & Ad Hoc Works,Hull Office,Carillion Services Ltd,Large,1173158,"6,235.18",Facilities - Quoted & Ad Hoc Works,Administration
HM Land Registry,HM Land Registry,14/02/2017,Grounds Maintenance,Hull Office,Carillion Services Ltd,Large,1173158,529.13,Grounds Maintenance,Administration
HM Land Registry,HM Land Registry,14/02/2017,Waste Disposal,Hull Office,Carillion Services Ltd,Large,1173158,437.04,Waste Disposal,Administration
HM Land Registry,HM Land Registry,14/02/2017,"FF&F:Purchases <1,000",Hull Office,Carillion Services Ltd,Large,1173158,"2,208.59","Furniture, Fixtures & Fittings: Purchases less than 1,000.00",Administration
HM Land Registry,HM Land Registry,14/02/2017,Facilities - Quoted & Ad Hoc Works,Leicester Office,Carillion Services Ltd,Large,1173158,"11,382.74",Facilities - Quoted & Ad Hoc Works,Administration
HM Land Registry,HM Land Registry,14/02/2017,Grounds Maintenance,Leicester Office,Carillion Services Ltd,Large,1173158,440.94,Grounds Maintenance,Administration
HM Land Registry,HM Land Registry,14/02/2017,Facilities - Quoted & Ad Hoc Works,Nottingham Office,Carillion Services Ltd,Large,1173158,"6,293.15",Facilities - Quoted & Ad Hoc Works,Administration
HM Land Registry,HM Land Registry,14/02/2017,"FF&F:Purchases <1,000",Nottingham Office,Carillion Services Ltd,Large,1173158,22.40,"Furniture, Fixtures & Fittings: Purchases less than 1,000.00",Administration
HM Land Registry,HM Land Registry,14/02/2017,Facilities - Quoted & Ad Hoc Works,Peterborough Office,Carillion Services Ltd,Large,1173158,"1,650.81",Facilities - Quoted & Ad Hoc Works,Administration
HM Land Registry,HM Land Registry,14/02/2017,"FF&F:Purchases <1,000",Peterborough Office,Carillion Services Ltd,Large,1173158,"1,003.86","Furniture, Fixtures & Fittings: Purchases less than 1,000.00",Administration
HM Land Registry,HM Land Registry,14/02/2017,Facilities - Quoted & Ad Hoc Works,Telford Office,Carillion Services Ltd,Large,1173158,971.75,Facilities - Quoted & Ad Hoc Works,Administration
HM Land Registry,HM Land Registry,14/02/2017,Grounds Maintenance,Telford Office,Carillion Services Ltd,Large,1173158,415.00,Grounds Maintenance,Administration
HM Land Registry,HM Land Registry,14/02/2017,Facilities - Quoted & Ad Hoc Works,Wales Office,Carillion Services Ltd,Large,1173158,"7,599.53",Facilities - Quoted & Ad Hoc Works,Administration
HM Land Registry,HM Land Registry,14/02/2017,Grounds Maintenance,Wales Office,Carillion Services Ltd,Large,1173158,352.75,Grounds Maintenance,Administration
HM Land Registry,HM Land Registry,14/02/2017,Facilities - Quoted & Ad Hoc Works,Weymouth Office,Carillion Services Ltd,Large,1173158,"21,766.90",Facilities - Quoted & Ad Hoc Works,Administration
HM Land Registry,HM Land Registry,14/02/2017,Grounds Maintenance,Weymouth Office,Carillion Services Ltd,Large,1173158,311.25,Grounds Maintenance,Administration
HM Land Registry,HM Land Registry,14/02/2017,Waste Disposal,Weymouth Office,Carillion Services Ltd,Large,1173158,597.36,Waste Disposal,Administration
HM Land Registry,HM Land Registry,14/02/2017,"FF&F:Purchases <1,000",Weymouth Office,Carillion Services Ltd,Large,1173158,"1,618.92","Furniture, Fixtures & Fittings: Purchases less than 1,000.00",Administration
HM Land Registry,HM Land Registry,14/02/2017,Electricity,Birkenhead Office,Carillion Services Ltd,Large,1173137,"4,957.40",Electricity,Administration
HM Land Registry,HM Land Registry,14/02/2017,Gas,Birkenhead Office,Carillion Services Ltd,Large,1173137,"1,411.37",Gas,Administration
HM Land Registry,HM Land Registry,14/02/2017,Water,Birkenhead Office,Carillion Services Ltd,Large,1173137,"12,807.30",Water,Administration
HM Land Registry,HM Land Registry,14/02/2017,Electricity,Croydon Office,Carillion Services Ltd,Large,1173137,"6,728.86",Electricity,Administration
HM Land Registry,HM Land Registry,14/02/2017,Gas,Croydon Office,Carillion Services Ltd,Large,1173137,"2,124.84",Gas,Administration
HM Land Registry,HM Land Registry,14/02/2017,Electricity,Director of Information Systems,Carillion Services Ltd,Large,1173137,"50,119.30",Electricity,Administration
HM Land Registry,HM Land Registry,14/02/2017,Gas,Director of Information Systems,Carillion Services Ltd,Large,1173137,"3,238.82",Gas,Administration
HM Land Registry,HM Land Registry,14/02/2017,Water,Director of Information Systems,Carillion Services Ltd,Large,1173137,"6,680.12",Water,Administration
HM Land Registry,HM Land Registry,14/02/2017,Electricity,Durham Office,Carillion Services Ltd,Large,1173137,"4,596.93",Electricity,Administration
HM Land Registry,HM Land Registry,14/02/2017,Gas,Durham Office,Carillion Services Ltd,Large,1173137,"1,729.26",Gas,Administration
HM Land Registry,HM Land Registry,14/02/2017,Electricity,Fylde Office,Carillion Services Ltd,Large,1173137,"4,766.57",Electricity,Administration
HM Land Registry,HM Land Registry,14/02/2017,Gas,Fylde Office,Carillion Services Ltd,Large,1173137,"1,911.47",Gas,Administration
HM Land Registry,HM Land Registry,14/02/2017,Water,Fylde Office,Carillion Services Ltd,Large,1173137,"4,086.01",Water,Administration
HM Land Registry,HM Land Registry,14/02/2017,Electricity,Gloucester Computer Centre,Carillion Services Ltd,Large,1173137,"33,254.27",Electricity,Administration
HM Land Registry,HM Land Registry,14/02/2017,Gas,Gloucester Computer Centre,Carillion Services Ltd,Large,1173137,527.63,Gas,Administration
HM Land Registry,HM Land Registry,14/02/2017,Electricity,Gloucester Office,Carillion Services Ltd,Large,1173137,"5,410.78",Electricity,Administration
HM Land Registry,HM Land Registry,14/02/2017,Gas,Gloucester Office,Carillion Services Ltd,Large,1173137,"2,464.65",Gas,Administration
HM Land Registry,HM Land Registry,14/02/2017,Water,Gloucester Office,Carillion Services Ltd,Large,1173137,"1,388.78",Water,Administration
HM Land Registry,HM Land Registry,14/02/2017,Electricity,Hull Office,Carillion Services Ltd,Large,1173137,"7,165.39",Electricity,Administration
HM Land Registry,HM Land Registry,14/02/2017,Gas,Hull Office,Carillion Services Ltd,Large,1173137,"2,813.02",Gas,Administration
HM Land Registry,HM Land Registry,14/02/2017,Water,Hull Office,Carillion Services Ltd,Large,1173137,789.59,Water,Administration
HM Land Registry,HM Land Registry,14/02/2017,Electricity,Leicester Office,Carillion Services Ltd,Large,1173137,"4,244.29",Electricity,Administration
HM Land Registry,HM Land Registry,14/02/2017,Gas,Leicester Office,Carillion Services Ltd,Large,1173137,"2,341.77",Gas,Administration
HM Land Registry,HM Land Registry,14/02/2017,Electricity,Nottingham Office,Carillion Services Ltd,Large,1173137,"7,810.05",Electricity,Administration
HM Land Registry,HM Land Registry,14/02/2017,Gas,Nottingham Office,Carillion Services Ltd,Large,1173137,429.37,Gas,Administration
HM Land Registry,HM Land Registry,14/02/2017,Electricity,Telford Office,Carillion Services Ltd,Large,1173137,"5,265.54",Electricity,Administration
HM Land Registry,HM Land Registry,14/02/2017,Gas,Telford Office,Carillion Services Ltd,Large,1173137,"2,505.22",Gas,Administration
HM Land Registry,HM Land Registry,14/02/2017,Water,Telford Office,Carillion Services Ltd,Large,1173137,"1,739.59",Water,Administration
HM Land Registry,HM Land Registry,14/02/2017,Electricity,Wales Office,Carillion Services Ltd,Large,1173137,"5,277.82",Electricity,Administration
HM Land Registry,HM Land Registry,14/02/2017,Gas,Wales Office,Carillion Services Ltd,Large,1173137,"1,193.55",Gas,Administration
HM Land Registry,HM Land Registry,14/02/2017,Electricity,Weymouth Office,Carillion Services Ltd,Large,1173137,"5,707.41",Electricity,Administration
HM Land Registry,HM Land Registry,14/02/2017,Gas,Weymouth Office,Carillion Services Ltd,Large,1173137,"1,466.86",Gas,Administration
HM Land Registry,HM Land Registry,14/02/2017,Facilities - Core Fee,Birkenhead Office,Carillion Services Ltd,Large,1173087,"5,458.63",Facilities - Core Fee,Administration
HM Land Registry,HM Land Registry,14/02/2017,FM Ext Helpdesk,Birkenhead Office,Carillion Services Ltd,Large,1173087,429.86,Facilities External Helpdesk,Administration
HM Land Registry,HM Land Registry,14/02/2017,FM Managed Services,Birkenhead Office,Carillion Services Ltd,Large,1173087,"5,842.99",Facilities Managed Services,Administration
HM Land Registry,HM Land Registry,14/02/2017,Grounds Maintenance,Birkenhead Office,Carillion Services Ltd,Large,1173087,330.30,Grounds Maintenance,Administration
HM Land Registry,HM Land Registry,14/02/2017,Office Cleaning Expenses,Birkenhead Office,Carillion Services Ltd,Large,1173087,"4,934.84",Office Cleaning Expenses,Administration
HM Land Registry,HM Land Registry,14/02/2017,Pest Control,Birkenhead Office,Carillion Services Ltd,Large,1173087,37.74,Pest Control,Administration
HM Land Registry,HM Land Registry,14/02/2017,Security Expenses,Birkenhead Office,Carillion Services Ltd,Large,1173087,"2,851.70",Security Expenses,Administration
HM Land Registry,HM Land Registry,14/02/2017,Vending Machine Consumables & Repairs,Birkenhead Office,Carillion Services Ltd,Large,1173087,"1,100.55",Vending Machine Consumables & Repairs,Administration
HM Land Registry,HM Land Registry,14/02/2017,Waste Disposal,Birkenhead Office,Carillion Services Ltd,Large,1173087,265.07,Waste Disposal,Administration
HM Land Registry,HM Land Registry,14/02/2017,Facilities - Core Fee,Central Facilities Management Team,Carillion Services Ltd,Large,1173087,"-6,014.75",Facilities - Core Fee,Administration
HM Land Registry,HM Land Registry,14/02/2017,Grounds Maintenance,Central Facilities Management Team,Carillion Services Ltd,Large,1173087,"-1,131.44",Grounds Maintenance,Administration
HM Land Registry,HM Land Registry,14/02/2017,Facilities - Core Fee,Croydon Office,Carillion Services Ltd,Large,1173087,"8,086.28",Facilities - Core Fee,Administration
HM Land Registry,HM Land Registry,14/02/2017,FM Ext Helpdesk,Croydon Office,Carillion Services Ltd,Large,1173087,517.42,Facilities External Helpdesk,Administration
HM Land Registry,HM Land Registry,14/02/2017,FM Managed Services,Croydon Office,Carillion Services Ltd,Large,1173087,"5,905.45",Facilities Managed Services,Administration
HM Land Registry,HM Land Registry,14/02/2017,Grounds Maintenance,Croydon Office,Carillion Services Ltd,Large,1173087,62.27,Grounds Maintenance,Administration
HM Land Registry,HM Land Registry,14/02/2017,Office Cleaning Expenses,Croydon Office,Carillion Services Ltd,Large,1173087,"3,742.62",Office Cleaning Expenses,Administration
HM Land Registry,HM Land Registry,14/02/2017,Pest Control,Croydon Office,Carillion Services Ltd,Large,1173087,36.24,Pest Control,Administration
HM Land Registry,HM Land Registry,14/02/2017,Security Expenses,Croydon Office,Carillion Services Ltd,Large,1173087,"7,905.36",Security Expenses,Administration
HM Land Registry,HM Land Registry,14/02/2017,Vending Machine Consumables & Repairs,Croydon Office,Carillion Services Ltd,Large,1173087,204.94,Vending Machine Consumables & Repairs,Administration
HM Land Registry,HM Land Registry,14/02/2017,Waste Disposal,Croydon Office,Carillion Services Ltd,Large,1173087,194.08,Waste Disposal,Administration
HM Land Registry,HM Land Registry,14/02/2017,Facilities - Core Fee,Director of Information Systems,Carillion Services Ltd,Large,1173087,"17,813.94",Facilities - Core Fee,Administration
HM Land Registry,HM Land Registry,14/02/2017,FM Ext Helpdesk,Director of Information Systems,Carillion Services Ltd,Large,1173087,"1,370.55",Facilities External Helpdesk,Administration
HM Land Registry,HM Land Registry,14/02/2017,FM Managed Services,Director of Information Systems,Carillion Services Ltd,Large,1173087,"13,342.07",Facilities Managed Services,Administration
HM Land Registry,HM Land Registry,14/02/2017,Grounds Maintenance,Director of Information Systems,Carillion Services Ltd,Large,1173087,"1,413.27",Grounds Maintenance,Administration
HM Land Registry,HM Land Registry,14/02/2017,Office Cleaning Expenses,Director of Information Systems,Carillion Services Ltd,Large,1173087,"8,056.88",Office Cleaning Expenses,Administration
HM Land Registry,HM Land Registry,14/02/2017,Pest Control,Director of Information Systems,Carillion Services Ltd,Large,1173087,129.85,Pest Control,Administration
HM Land Registry,HM Land Registry,14/02/2017,Security Expenses,Director of Information Systems,Carillion Services Ltd,Large,1173087,"17,291.36",Security Expenses,Administration
HM Land Registry,HM Land Registry,14/02/2017,Vending Machine Consumables & Repairs,Director of Information Systems,Carillion Services Ltd,Large,1173087,199.55,Vending Machine Consumables & Repairs,Administration
HM Land Registry,HM Land Registry,14/02/2017,Waste Disposal,Director of Information Systems,Carillion Services Ltd,Large,1173087,607.11,Waste Disposal,Administration
HM Land Registry,HM Land Registry,14/02/2017,Facilities - Core Fee,Durham Office,Carillion Services Ltd,Large,1173087,"6,440.47",Facilities - Core Fee,Administration
HM Land Registry,HM Land Registry,14/02/2017,FM Ext Helpdesk,Durham Office,Carillion Services Ltd,Large,1173087,539.50,Facilities External Helpdesk,Administration
HM Land Registry,HM Land Registry,14/02/2017,FM Managed Services,Durham Office,Carillion Services Ltd,Large,1173087,"5,661.38",Facilities Managed Services,Administration
HM Land Registry,HM Land Registry,14/02/2017,Grounds Maintenance,Durham Office,Carillion Services Ltd,Large,1173087,773.64,Grounds Maintenance,Administration
HM Land Registry,HM Land Registry,14/02/2017,Office Cleaning Expenses,Durham Office,Carillion Services Ltd,Large,1173087,"5,732.10",Office Cleaning Expenses,Administration
HM Land Registry,HM Land Registry,14/02/2017,Pest Control,Durham Office,Carillion Services Ltd,Large,1173087,66.20,Pest Control,Administration
HM Land Registry,HM Land Registry,14/02/2017,Security Expenses,Durham Office,Carillion Services Ltd,Large,1173087,"2,311.72",Security Expenses,Administration
HM Land Registry,HM Land Registry,14/02/2017,Vending Machine Consumables & Repairs,Durham Office,Carillion Services Ltd,Large,1173087,40.35,Vending Machine Consumables & Repairs,Administration
HM Land Registry,HM Land Registry,14/02/2017,Waste Disposal,Durham Office,Carillion Services Ltd,Large,1173087,308.59,Waste Disposal,Administration
HM Land Registry,HM Land Registry,14/02/2017,Facilities - Core Fee,Fylde Office,Carillion Services Ltd,Large,1173087,"4,077.17",Facilities - Core Fee,Administration
HM Land Registry,HM Land Registry,14/02/2017,FM Ext Helpdesk,Fylde Office,Carillion Services Ltd,Large,1173087,375.19,Facilities External Helpdesk,Administration
HM Land Registry,HM Land Registry,14/02/2017,FM Managed Services,Fylde Office,Carillion Services Ltd,Large,1173087,"5,557.64",Facilities Managed Services,Administration
HM Land Registry,HM Land Registry,14/02/2017,Grounds Maintenance,Fylde Office,Carillion Services Ltd,Large,1173087,"1,444.81",Grounds Maintenance,Administration
HM Land Registry,HM Land Registry,14/02/2017,Office Cleaning Expenses,Fylde Office,Carillion Services Ltd,Large,1173087,"3,383.65",Office Cleaning Expenses,Administration
HM Land Registry,HM Land Registry,14/02/2017,Pest Control,Fylde Office,Carillion Services Ltd,Large,1173087,35.69,Pest Control,Administration
HM Land Registry,HM Land Registry,14/02/2017,Security Expenses,Fylde Office,Carillion Services Ltd,Large,1173087,"2,093.87",Security Expenses,Administration
HM Land Registry,HM Land Registry,14/02/2017,Vending Machine Consumables & Repairs,Fylde Office,Carillion Services Ltd,Large,1173087,144.01,Vending Machine Consumables & Repairs,Administration
HM Land Registry,HM Land Registry,14/02/2017,Waste Disposal,Fylde Office,Carillion Services Ltd,Large,1173087,237.54,Waste Disposal,Administration
HM Land Registry,HM Land Registry,14/02/2017,Facilities - Core Fee,Gloucester Computer Centre,Carillion Services Ltd,Large,1173087,"7,927.91",Facilities - Core Fee,Administration
HM Land Registry,HM Land Registry,14/02/2017,FM Ext Helpdesk,Gloucester Computer Centre,Carillion Services Ltd,Large,1173087,501.27,Facilities External Helpdesk,Administration
HM Land Registry,HM Land Registry,14/02/2017,FM Managed Services,Gloucester Computer Centre,Carillion Services Ltd,Large,1173087,"2,705.42",Facilities Managed Services,Administration
HM Land Registry,HM Land Registry,14/02/2017,Grounds Maintenance,Gloucester Computer Centre,Carillion Services Ltd,Large,1173087,87.43,Grounds Maintenance,Administration
HM Land Registry,HM Land Registry,14/02/2017,Office Cleaning Expenses,Gloucester Computer Centre,Carillion Services Ltd,Large,1173087,110.89,Office Cleaning Expenses,Administration
HM Land Registry,HM Land Registry,14/02/2017,Pest Control,Gloucester Computer Centre,Carillion Services Ltd,Large,1173087,25.80,Pest Control,Administration
HM Land Registry,HM Land Registry,14/02/2017,Security Expenses,Gloucester Computer Centre,Carillion Services Ltd,Large,1173087,"7,179.07",Security Expenses,Administration
HM Land Registry,HM Land Registry,14/02/2017,Vending Machine Consumables & Repairs,Gloucester Computer Centre,Carillion Services Ltd,Large,1173087,18.36,Vending Machine Consumables & Repairs,Administration
HM Land Registry,HM Land Registry,14/02/2017,Waste Disposal,Gloucester Computer Centre,Carillion Services Ltd,Large,1173087,42.18,Waste Disposal,Administration
HM Land Registry,HM Land Registry,14/02/2017,Facilities - Core Fee,Gloucester Office,Carillion Services Ltd,Large,1173087,"3,633.96",Facilities - Core Fee,Administration
HM Land Registry,HM Land Registry,14/02/2017,FM Ext Helpdesk,Gloucester Office,Carillion Services Ltd,Large,1173087,540.35,Facilities External Helpdesk,Administration
HM Land Registry,HM Land Registry,14/02/2017,FM Managed Services,Gloucester Office,Carillion Services Ltd,Large,1173087,"3,167.72",Facilities Managed Services,Administration
HM Land Registry,HM Land Registry,14/02/2017,Grounds Maintenance,Gloucester Office,Carillion Services Ltd,Large,1173087,591.28,Grounds Maintenance,Administration
HM Land Registry,HM Land Registry,14/02/2017,Office Cleaning Expenses,Gloucester Office,Carillion Services Ltd,Large,1173087,"6,398.94",Office Cleaning Expenses,Administration
HM Land Registry,HM Land Registry,14/02/2017,Pest Control,Gloucester Office,Carillion Services Ltd,Large,1173087,76.59,Pest Control,Administration
HM Land Registry,HM Land Registry,14/02/2017,Security Expenses,Gloucester Office,Carillion Services Ltd,Large,1173087,"8,511.99",Security Expenses,Administration
HM Land Registry,HM Land Registry,14/02/2017,Vending Machine Consumables & Repairs,Gloucester Office,Carillion Services Ltd,Large,1173087,131.98,Vending Machine Consumables & Repairs,Administration
HM Land Registry,HM Land Registry,14/02/2017,Waste Disposal,Gloucester Office,Carillion Services Ltd,Large,1173087,230.02,Waste Disposal,Administration
HM Land Registry,HM Land Registry,14/02/2017,Facilities - Core Fee,Hull Office,Carillion Services Ltd,Large,1173087,"6,562.73",Facilities - Core Fee,Administration
HM Land Registry,HM Land Registry,14/02/2017,FM Ext Helpdesk,Hull Office,Carillion Services Ltd,Large,1173087,421.63,Facilities External Helpdesk,Administration
HM Land Registry,HM Land Registry,14/02/2017,FM Managed Services,Hull Office,Carillion Services Ltd,Large,1173087,"5,393.84",Facilities Managed Services,Administration
HM Land Registry,HM Land Registry,14/02/2017,Grounds Maintenance,Hull Office,Carillion Services Ltd,Large,1173087,591.28,Grounds Maintenance,Administration
HM Land Registry,HM Land Registry,14/02/2017,Office Cleaning Expenses,Hull Office,Carillion Services Ltd,Large,1173087,"3,583.61",Office Cleaning Expenses,Administration
HM Land Registry,HM Land Registry,14/02/2017,Pest Control,Hull Office,Carillion Services Ltd,Large,1173087,45.10,Pest Control,Administration
HM Land Registry,HM Land Registry,14/02/2017,Security Expenses,Hull Office,Carillion Services Ltd,Large,1173087,"2,617.86",Security Expenses,Administration
HM Land Registry,HM Land Registry,14/02/2017,Vending Machine Consumables & Repairs,Hull Office,Carillion Services Ltd,Large,1173087,317.45,Vending Machine Consumables & Repairs,Administration
HM Land Registry,HM Land Registry,14/02/2017,Waste Disposal,Hull Office,Carillion Services Ltd,Large,1173087,173.51,Waste Disposal,Administration
HM Land Registry,HM Land Registry,14/02/2017,Facilities - Core Fee,Leicester Office,Carillion Services Ltd,Large,1173087,"8,954.84",Facilities - Core Fee,Administration
HM Land Registry,HM Land Registry,14/02/2017,FM Ext Helpdesk,Leicester Office,Carillion Services Ltd,Large,1173087,449.06,Facilities External Helpdesk,Administration
HM Land Registry,HM Land Registry,14/02/2017,FM Managed Services,Leicester Office,Carillion Services Ltd,Large,1173087,"3,988.45",Facilities Managed Services,Administration
HM Land Registry,HM Land Registry,14/02/2017,Grounds Maintenance,Leicester Office,Carillion Services Ltd,Large,1173087,124.47,Grounds Maintenance,Administration
HM Land Registry,HM Land Registry,14/02/2017,Office Cleaning Expenses,Leicester Office,Carillion Services Ltd,Large,1173087,"2,162.48",Office Cleaning Expenses,Administration
HM Land Registry,HM Land Registry,14/02/2017,Pest Control,Leicester Office,Carillion Services Ltd,Large,1173087,35.69,Pest Control,Administration
HM Land Registry,HM Land Registry,14/02/2017,Security Expenses,Leicester Office,Carillion Services Ltd,Large,1173087,"2,359.48",Security Expenses,Administration
HM Land Registry,HM Land Registry,14/02/2017,Vending Machine Consumables & Repairs,Leicester Office,Carillion Services Ltd,Large,1173087,106.19,Vending Machine Consumables & Repairs,Administration
HM Land Registry,HM Land Registry,14/02/2017,Waste Disposal,Leicester Office,Carillion Services Ltd,Large,1173087,250.98,Waste Disposal,Administration
HM Land Registry,HM Land Registry,14/02/2017,Facilities - Core Fee,Nottingham Office,Carillion Services Ltd,Large,1173087,"6,206.23",Facilities - Core Fee,Administration
HM Land Registry,HM Land Registry,14/02/2017,FM Ext Helpdesk,Nottingham Office,Carillion Services Ltd,Large,1173087,"1,667.13",Facilities External Helpdesk,Administration
HM Land Registry,HM Land Registry,14/02/2017,FM Managed Services,Nottingham Office,Carillion Services Ltd,Large,1173087,"10,332.45",Facilities Managed Services,Administration
HM Land Registry,HM Land Registry,14/02/2017,Grounds Maintenance,Nottingham Office,Carillion Services Ltd,Large,1173087,299.77,Grounds Maintenance,Administration
HM Land Registry,HM Land Registry,14/02/2017,Office Cleaning Expenses,Nottingham Office,Carillion Services Ltd,Large,1173087,"5,418.65",Office Cleaning Expenses,Administration
HM Land Registry,HM Land Registry,14/02/2017,Pest Control,Nottingham Office,Carillion Services Ltd,Large,1173087,121.85,Pest Control,Administration
HM Land Registry,HM Land Registry,14/02/2017,Security Expenses,Nottingham Office,Carillion Services Ltd,Large,1173087,"3,000.94",Security Expenses,Administration
HM Land Registry,HM Land Registry,14/02/2017,Vending Machine Consumables & Repairs,Nottingham Office,Carillion Services Ltd,Large,1173087,118.69,Vending Machine Consumables & Repairs,Administration
HM Land Registry,HM Land Registry,14/02/2017,Waste Disposal,Nottingham Office,Carillion Services Ltd,Large,1173087,308.59,Waste Disposal,Administration
HM Land Registry,HM Land Registry,14/02/2017,Facilities - Core Fee,Peterborough Office,Carillion Services Ltd,Large,1173087,"3,546.27",Facilities - Core Fee,Administration
HM Land Registry,HM Land Registry,14/02/2017,FM Ext Helpdesk,Peterborough Office,Carillion Services Ltd,Large,1173087,550.64,Facilities External Helpdesk,Administration
HM Land Registry,HM Land Registry,14/02/2017,FM Managed Services,Peterborough Office,Carillion Services Ltd,Large,1173087,"5,207.17",Facilities Managed Services,Administration
HM Land Registry,HM Land Registry,14/02/2017,Office Cleaning Expenses,Peterborough Office,Carillion Services Ltd,Large,1173087,769.34,Office Cleaning Expenses,Administration
HM Land Registry,HM Land Registry,14/02/2017,Pest Control,Peterborough Office,Carillion Services Ltd,Large,1173087,37.11,Pest Control,Administration
HM Land Registry,HM Land Registry,14/02/2017,Facilities - Core Fee,Telford Office,Carillion Services Ltd,Large,1173087,"6,327.00",Facilities - Core Fee,Administration
HM Land Registry,HM Land Registry,14/02/2017,FM Ext Helpdesk,Telford Office,Carillion Services Ltd,Large,1173087,569.79,Facilities External Helpdesk,Administration
HM Land Registry,HM Land Registry,14/02/2017,FM Managed Services,Telford Office,Carillion Services Ltd,Large,1173087,"5,833.52",Facilities Managed Services,Administration
HM Land Registry,HM Land Registry,14/02/2017,Grounds Maintenance,Telford Office,Carillion Services Ltd,Large,1173087,"1,018.96",Grounds Maintenance,Administration
HM Land Registry,HM Land Registry,14/02/2017,Office Cleaning Expenses,Telford Office,Carillion Services Ltd,Large,1173087,"5,717.14",Office Cleaning Expenses,Administration
HM Land Registry,HM Land Registry,14/02/2017,Pest Control,Telford Office,Carillion Services Ltd,Large,1173087,40.51,Pest Control,Administration
HM Land Registry,HM Land Registry,14/02/2017,Security Expenses,Telford Office,Carillion Services Ltd,Large,1173087,"2,574.85",Security Expenses,Administration
HM Land Registry,HM Land Registry,14/02/2017,Vending Machine Consumables & Repairs,Telford Office,Carillion Services Ltd,Large,1173087,181.28,Vending Machine Consumables & Repairs,Administration
HM Land Registry,HM Land Registry,14/02/2017,Waste Disposal,Telford Office,Carillion Services Ltd,Large,1173087,221.95,Waste Disposal,Administration
HM Land Registry,HM Land Registry,14/02/2017,Facilities - Core Fee,Wales Office,Carillion Services Ltd,Large,1173087,"5,379.83",Facilities - Core Fee,Administration
HM Land Registry,HM Land Registry,14/02/2017,FM Ext Helpdesk,Wales Office,Carillion Services Ltd,Large,1173087,408.51,Facilities External Helpdesk,Administration
HM Land Registry,HM Land Registry,14/02/2017,FM Managed Services,Wales Office,Carillion Services Ltd,Large,1173087,"5,608.75",Facilities Managed Services,Administration
HM Land Registry,HM Land Registry,14/02/2017,Grounds Maintenance,Wales Office,Carillion Services Ltd,Large,1173087,438.67,Grounds Maintenance,Administration
HM Land Registry,HM Land Registry,14/02/2017,Office Cleaning Expenses,Wales Office,Carillion Services Ltd,Large,1173087,"4,529.58",Office Cleaning Expenses,Administration
HM Land Registry,HM Land Registry,14/02/2017,Pest Control,Wales Office,Carillion Services Ltd,Large,1173087,87.99,Pest Control,Administration
HM Land Registry,HM Land Registry,14/02/2017,Security Expenses,Wales Office,Carillion Services Ltd,Large,1173087,"2,333.58",Security Expenses,Administration
HM Land Registry,HM Land Registry,14/02/2017,Vending Machine Consumables & Repairs,Wales Office,Carillion Services Ltd,Large,1173087,177.72,Vending Machine Consumables & Repairs,Administration
HM Land Registry,HM Land Registry,14/02/2017,Waste Disposal,Wales Office,Carillion Services Ltd,Large,1173087,512.29,Waste Disposal,Administration
HM Land Registry,HM Land Registry,14/02/2017,Facilities - Core Fee,Weymouth Office,Carillion Services Ltd,Large,1173087,"2,692.35",Facilities - Core Fee,Administration
HM Land Registry,HM Land Registry,14/02/2017,FM Ext Helpdesk,Weymouth Office,Carillion Services Ltd,Large,1173087,332.09,Facilities External Helpdesk,Administration
HM Land Registry,HM Land Registry,14/02/2017,FM Managed Services,Weymouth Office,Carillion Services Ltd,Large,1173087,"5,478.41",Facilities Managed Services,Administration
HM Land Registry,HM Land Registry,14/02/2017,Grounds Maintenance,Weymouth Office,Carillion Services Ltd,Large,1173087,681.51,Grounds Maintenance,Administration
HM Land Registry,HM Land Registry,14/02/2017,Office Cleaning Expenses,Weymouth Office,Carillion Services Ltd,Large,1173087,"4,047.39",Office Cleaning Expenses,Administration
HM Land Registry,HM Land Registry,14/02/2017,Pest Control,Weymouth Office,Carillion Services Ltd,Large,1173087,37.74,Pest Control,Administration
HM Land Registry,HM Land Registry,14/02/2017,Security Expenses,Weymouth Office,Carillion Services Ltd,Large,1173087,"2,577.22",Security Expenses,Administration
HM Land Registry,HM Land Registry,14/02/2017,Vending Machine Consumables & Repairs,Weymouth Office,Carillion Services Ltd,Large,1173087,102.86,Vending Machine Consumables & Repairs,Administration
HM Land Registry,HM Land Registry,14/02/2017,Waste Disposal,Weymouth Office,Carillion Services Ltd,Large,1173087,157.75,Waste Disposal,Administration
HM Land Registry,HM Land Registry,06/02/2017,Computer Equipment Maintenance,IS Service Delivery,CGI IT UK Limited,Large,1172283,"61,500.00",Computer Equipment Maintenance,Administration
HM Land Registry,HM Land Registry,27/02/2017,Computer Equipment Maintenance,IS Service Delivery,Computacenter (UK) Ltd,Large,1173687,"51,771.95",Computer Equipment Maintenance,Administration
HM Land Registry,HM Land Registry,27/02/2017,Computer Equipment Non HP Licences,IS Service Delivery,Computacenter (UK) Ltd,Large,1173687,"69,935.75",Computer Equipment Non HP Licences,Administration
HM Land Registry,HM Land Registry,21/02/2017,Computer Equipment Hire,IS Service Delivery,Computer Associates UK Limited,Large,1173960,"382,858.80",Computer Equipment Hire,Administration
HM Land Registry,HM Land Registry,02/02/2017,Software as a Service (Cloud),IS Service Delivery,Europa Technologies Limited,SME,1171717,"64,950.00",Cloud Computing Services,Administration
HM Land Registry,HM Land Registry,20/02/2017,Fixed Asset Interface Account,Balance Sheet,Insight Direct (UK) Ltd,Large,1173114,"111,650.40",Fixed Assets,Administration
HM Land Registry,HM Land Registry,08/02/2017,Professional Services,Program: Local Land Charges,Kainos Software Ltd,Large,1171874,"30,805.03",Professional Services,Administration
HM Land Registry,HM Land Registry,08/02/2017,Professional Services,Program: Local Land Charges,Kainos Software Ltd,Large,1171873,"51,233.70",Professional Services,Administration
HM Land Registry,HM Land Registry,13/02/2017,Professional Services,Program: Local Land Charges,Kainos Software Ltd,Large,1172958,"167,916.08",Professional Services,Administration
HM Land Registry,HM Land Registry,17/02/2017,Professional Services,Potential Privatisation,Methods Digital Ltd,Large,1172628,"74,017.50",Professional Services,Administration
HM Land Registry,HM Land Registry,17/02/2017,Auditors Remuneration,Finance Group,National Audit Office,Large,1173541,"32,500.00",Auditors Remuneration,Administration
HM Land Registry,HM Land Registry,14/02/2017,Computer Equipment Maintenance,IS Service Delivery,Oracle Corporation (UK) Ltd,Large,1173111,"51,292.58",Computer Equipment Maintenance,Administration
HM Land Registry,HM Land Registry,03/02/2017,Software as a Service (Cloud),IS Service Delivery,Phoenix Software Ltd,SME,1172086,"49,590.00",Cloud Computing Services,Administration
HM Land Registry,HM Land Registry,08/02/2017,Travel & Subsistence General Duty,Business Development,Redfern Travel Ltd,SME,1172778,"1,372.40",Travel & Subsistence,Administration
HM Land Registry,HM Land Registry,08/02/2017,Travel & Subsistence General Duty,Central Facilities Management Team,Redfern Travel Ltd,SME,1172778,810.42,Travel & Subsistence,Administration
HM Land Registry,HM Land Registry,08/02/2017,Travel & Subsistence Dual Workplace,Central Facilities Management Team,Redfern Travel Ltd,SME,1172778,91.20,Travel & Subsistence,Administration
HM Land Registry,HM Land Registry,08/02/2017,Travel & Subsistence General Duty,Central Operations Group,Redfern Travel Ltd,SME,1172778,"2,300.30",Travel & Subsistence,Administration
HM Land Registry,HM Land Registry,08/02/2017,Travel & Subsistence General Duty,Chief Executives Office,Redfern Travel Ltd,SME,1172778,623.90,Travel & Subsistence,Administration
HM Land Registry,HM Land Registry,08/02/2017,Travel & Subsistence General Duty,Corp Procurement,Redfern Travel Ltd,SME,1172778,730.60,Travel & Subsistence,Administration
HM Land Registry,HM Land Registry,08/02/2017,Travel & Subsistence General Duty,Corporate Assurance,Redfern Travel Ltd,SME,1172778,275.40,Travel & Subsistence,Administration
HM Land Registry,HM Land Registry,08/02/2017,Travel & Subsistence General Duty,Corporate Legal Services,Redfern Travel Ltd,SME,1172778,685.70,Travel & Subsistence,Administration
HM Land Registry,HM Land Registry,08/02/2017,Travel & Subsistence Dual Workplace,Corporate Legal Services,Redfern Travel Ltd,SME,1172778,36.10,Travel & Subsistence,Administration
HM Land Registry,HM Land Registry,08/02/2017,Travel & Subsistence General Duty,Data Group,Redfern Travel Ltd,SME,1172778,865.10,Travel & Subsistence,Administration
HM Land Registry,HM Land Registry,08/02/2017,Travel & Subsistence General Duty,Dir: (Statutory) Digital Services,Redfern Travel Ltd,SME,1172778,"1,330.10",Travel & Subsistence,Administration
HM Land Registry,HM Land Registry,08/02/2017,Travel & Subsistence General Duty,Dir: Operations,Redfern Travel Ltd,SME,1172778,882.90,Travel & Subsistence,Administration
HM Land Registry,HM Land Registry,08/02/2017,Travel & Subsistence General Duty,Director of Information Systems,Redfern Travel Ltd,SME,1172778,"1,200.10",Travel & Subsistence,Administration
HM Land Registry,HM Land Registry,08/02/2017,Travel & Subsistence General Duty,Director of Legal Services,Redfern Travel Ltd,SME,1172778,113.50,Travel & Subsistence,Administration
HM Land Registry,HM Land Registry,08/02/2017,Travel & Subsistence Dual Workplace,Director of Legal Services,Redfern Travel Ltd,SME,1172778,150.60,Travel & Subsistence,Administration
HM Land Registry,HM Land Registry,08/02/2017,Travel & Subsistence Overseas Travel,Director of Legal Services,Redfern Travel Ltd,SME,1172778,31.43,Travel & Subsistence,Administration
HM Land Registry,HM Land Registry,08/02/2017,Travel & Subsistence General Duty,Director of Operations,Redfern Travel Ltd,SME,1172778,0.60,Travel & Subsistence,Administration
HM Land Registry,HM Land Registry,08/02/2017,Travel & Subsistence General Duty,Durham Office,Redfern Travel Ltd,SME,1172778,-146.90,Travel & Subsistence,Administration
HM Land Registry,HM Land Registry,08/02/2017,Travel & Subsistence General Duty,Finance Director,Redfern Travel Ltd,SME,1172778,185.50,Travel & Subsistence,Administration
HM Land Registry,HM Land Registry,08/02/2017,Travel & Subsistence General Duty,Finance Group,Redfern Travel Ltd,SME,1172778,287.25,Travel & Subsistence,Administration
HM Land Registry,HM Land Registry,08/02/2017,Travel & Subsistence General Duty,Guarantee & Litigation,Redfern Travel Ltd,SME,1172778,519.83,Travel & Subsistence,Administration
HM Land Registry,HM Land Registry,08/02/2017,Travel & Subsistence General Duty,HR Group,Redfern Travel Ltd,SME,1172778,"3,109.57",Travel & Subsistence,Administration
HM Land Registry,HM Land Registry,08/02/2017,Travel & Subsistence General Duty,Hull Office,Redfern Travel Ltd,SME,1172778,101.50,Travel & Subsistence,Administration
HM Land Registry,HM Land Registry,08/02/2017,Travel & Subsistence General Duty,Internal Solutions Group,Redfern Travel Ltd,SME,1172778,914.40,Travel & Subsistence,Administration
HM Land Registry,HM Land Registry,08/02/2017,Travel & Subsistence General Duty,IS Service Delivery,Redfern Travel Ltd,SME,1172778,"1,678.47",Travel & Subsistence,Administration
HM Land Registry,HM Land Registry,08/02/2017,Travel & Subsistence General Duty,Leicester Office,Redfern Travel Ltd,SME,1172778,77.60,Travel & Subsistence,Administration
HM Land Registry,HM Land Registry,08/02/2017,Travel & Subsistence General Duty,Local Land Charges,Redfern Travel Ltd,SME,1172778,"3,756.38",Travel & Subsistence,Administration
HM Land Registry,HM Land Registry,08/02/2017,Travel & Subsistence Dual Workplace,Local Land Charges,Redfern Travel Ltd,SME,1172778,136.60,Travel & Subsistence,Administration
HM Land Registry,HM Land Registry,08/02/2017,Travel & Subsistence General Duty,Local Lawyer Group,Redfern Travel Ltd,SME,1172778,"1,908.38",Travel & Subsistence,Administration
HM Land Registry,HM Land Registry,08/02/2017,Travel & Subsistence General Duty,Nottingham Office,Redfern Travel Ltd,SME,1172778,198.20,Travel & Subsistence,Administration
HM Land Registry,HM Land Registry,08/02/2017,Travel & Subsistence General Duty,Plymouth Office,Redfern Travel Ltd,SME,1172778,493.40,Travel & Subsistence,Administration
HM Land Registry,HM Land Registry,08/02/2017,Travel & Subsistence General Duty,Product Development & Management,Redfern Travel Ltd,SME,1172778,598.66,Travel & Subsistence,Administration
HM Land Registry,HM Land Registry,08/02/2017,Travel & Subsistence General Duty,Program: Local Land Charges,Redfern Travel Ltd,SME,1172778,617.95,Travel & Subsistence,Administration
HM Land Registry,HM Land Registry,08/02/2017,Travel & Subsistence General Duty,Property Asset Management Group,Redfern Travel Ltd,SME,1172778,955.39,Travel & Subsistence,Administration
HM Land Registry,HM Land Registry,08/02/2017,Travel & Subsistence General Duty,Research & Data Mining,Redfern Travel Ltd,SME,1172778,"1,972.79",Travel & Subsistence,Administration
HM Land Registry,HM Land Registry,08/02/2017,Travel & Subsistence General Duty,Strategy Team,Redfern Travel Ltd,SME,1172778,880.50,Travel & Subsistence,Administration
HM Land Registry,HM Land Registry,08/02/2017,Travel & Subsistence General Duty,Technology Group,Redfern Travel Ltd,SME,1172778,164.20,Travel & Subsistence,Administration
HM Land Registry,HM Land Registry,08/02/2017,Travel & Subsistence General Duty,Telford Office,Redfern Travel Ltd,SME,1172778,213.40,Travel & Subsistence,Administration
HM Land Registry,HM Land Registry,08/02/2017,Travel & Subsistence General Duty,Wales Office,Redfern Travel Ltd,SME,1172778,89.60,Travel & Subsistence,Administration
HM Land Registry,HM Land Registry,08/02/2017,Travel & Subsistence General Duty,Weymouth Office,Redfern Travel Ltd,SME,1172778,68.60,Travel & Subsistence,Administration
HM Land Registry,HM Land Registry,08/02/2017,Travel & Subsistence General Duty,Dir: Finance,Redfern Travel Ltd,SME,1172778,212.30,Travel & Subsistence,Administration
HM Land Registry,HM Land Registry,08/02/2017,Travel & Subsistence General Duty,Registration Legal Services Group,Redfern Travel Ltd,SME,1172778,170.60,Travel & Subsistence,Administration
HM Land Registry,HM Land Registry,08/02/2017,Travel & Subsistence General Duty,Dir: Information Systems,Redfern Travel Ltd,SME,1172778,536.70,Travel & Subsistence,Administration
HM Land Registry,HM Land Registry,08/02/2017,Travel & Subsistence General Duty,International Business Development,Redfern Travel Ltd,SME,1172778,295.70,Travel & Subsistence,Administration
HM Land Registry,HM Land Registry,08/02/2017,Travel & Subsistence General Duty,Communications Team,Redfern Travel Ltd,SME,1172778,115.00,Travel & Subsistence,Administration
HM Land Registry,HM Land Registry,08/02/2017,Travel & Subsistence General Duty,Diversity,Redfern Travel Ltd,SME,1172778,415.75,Travel & Subsistence,Administration
HM Land Registry,HM Land Registry,08/02/2017,Travel & Subsistence General Duty,LR Sports Council,Redfern Travel Ltd,SME,1172778,108.10,Travel & Subsistence,Administration
HM Land Registry,HM Land Registry,08/02/2017,Travel & Subsistence General Duty,Operations Assurance and Risk,Redfern Travel Ltd,SME,1172778,90.33,Travel & Subsistence,Administration
HM Land Registry,HM Land Registry,08/02/2017,Travel & Subsistence General Duty,Local Lawyer Support Group,Redfern Travel Ltd,SME,1172778,101.65,Travel & Subsistence,Administration
HM Land Registry,HM Land Registry,08/02/2017,Travel & Subsistence General Duty,Dir: Strategy,Redfern Travel Ltd,SME,1172778,405.80,Travel & Subsistence,Administration
HM Land Registry,HM Land Registry,08/02/2017,Travel & Subsistence General Duty,Customer Services,Redfern Travel Ltd,SME,1172778,36.20,Travel & Subsistence,Administration
HM Land Registry,HM Land Registry,14/02/2017,Travel & Subsistence General Duty,Business Development,Redfern Travel Ltd,SME,1173135,865.70,Travel & Subsistence,Administration
HM Land Registry,HM Land Registry,14/02/2017,Travel & Subsistence General Duty,Central Facilities Management Team,Redfern Travel Ltd,SME,1173135,391.70,Travel & Subsistence,Administration
HM Land Registry,HM Land Registry,14/02/2017,Travel & Subsistence Dual Workplace,Central Facilities Management Team,Redfern Travel Ltd,SME,1173135,321.00,Travel & Subsistence,Administration
HM Land Registry,HM Land Registry,14/02/2017,Travel & Subsistence General Duty,Central Operations Group,Redfern Travel Ltd,SME,1173135,"1,687.82",Travel & Subsistence,Administration
HM Land Registry,HM Land Registry,14/02/2017,Travel & Subsistence General Duty,Chief Executives Office,Redfern Travel Ltd,SME,1173135,796.34,Travel & Subsistence,Administration
HM Land Registry,HM Land Registry,14/02/2017,Travel & Subsistence General Duty,Commercial Director,Redfern Travel Ltd,SME,1173135,17.50,Travel & Subsistence,Administration
HM Land Registry,HM Land Registry,14/02/2017,Travel & Subsistence General Duty,Corp Procurement,Redfern Travel Ltd,SME,1173135,379.44,Travel & Subsistence,Administration
HM Land Registry,HM Land Registry,14/02/2017,Travel & Subsistence Dual Workplace,Corp Procurement,Redfern Travel Ltd,SME,1173135,136.60,Travel & Subsistence,Administration
HM Land Registry,HM Land Registry,14/02/2017,Travel & Subsistence General Duty,Corporate Assurance,Redfern Travel Ltd,SME,1173135,53.52,Travel & Subsistence,Administration
HM Land Registry,HM Land Registry,14/02/2017,Travel & Subsistence General Duty,Corporate Legal Services,Redfern Travel Ltd,SME,1173135,683.40,Travel & Subsistence,Administration
HM Land Registry,HM Land Registry,14/02/2017,Travel & Subsistence Dual Workplace,Corporate Legal Services,Redfern Travel Ltd,SME,1173135,23.20,Travel & Subsistence,Administration
HM Land Registry,HM Land Registry,14/02/2017,Travel & Subsistence General Duty,Coventry Office,Redfern Travel Ltd,SME,1173135,18.50,Travel & Subsistence,Administration
HM Land Registry,HM Land Registry,14/02/2017,Travel & Subsistence General Duty,Croydon Office,Redfern Travel Ltd,SME,1173135,89.60,Travel & Subsistence,Administration
HM Land Registry,HM Land Registry,14/02/2017,Travel & Subsistence General Duty,Data Group,Redfern Travel Ltd,SME,1173135,553.00,Travel & Subsistence,Administration
HM Land Registry,HM Land Registry,14/02/2017,Travel & Subsistence General Duty,Dir: (Statutory) Digital Services,Redfern Travel Ltd,SME,1173135,609.18,Travel & Subsistence,Administration
HM Land Registry,HM Land Registry,14/02/2017,Travel & Subsistence General Duty,Dir: Operations,Redfern Travel Ltd,SME,1173135,"1,093.81",Travel & Subsistence,Administration
HM Land Registry,HM Land Registry,14/02/2017,Travel & Subsistence General Duty,Director of Information Systems,Redfern Travel Ltd,SME,1173135,291.80,Travel & Subsistence,Administration
HM Land Registry,HM Land Registry,14/02/2017,Travel & Subsistence General Duty,Director of Legal Services,Redfern Travel Ltd,SME,1173135,"1,109.53",Travel & Subsistence,Administration
HM Land Registry,HM Land Registry,14/02/2017,Travel & Subsistence General Duty,Director of Operations,Redfern Travel Ltd,SME,1173135,90.20,Travel & Subsistence,Administration
HM Land Registry,HM Land Registry,14/02/2017,Travel & Subsistence General Duty,Durham Office,Redfern Travel Ltd,SME,1173135,"1,043.50",Travel & Subsistence,Administration
HM Land Registry,HM Land Registry,14/02/2017,Travel & Subsistence General Duty,Finance Director,Redfern Travel Ltd,SME,1173135,25.60,Travel & Subsistence,Administration
HM Land Registry,HM Land Registry,14/02/2017,Travel & Subsistence General Duty,Finance Group,Redfern Travel Ltd,SME,1173135,229.55,Travel & Subsistence,Administration
HM Land Registry,HM Land Registry,14/02/2017,Travel & Subsistence General Duty,Forward Scanning,Redfern Travel Ltd,SME,1173135,44.80,Travel & Subsistence,Administration
HM Land Registry,HM Land Registry,14/02/2017,Travel & Subsistence General Duty,Fylde Office,Redfern Travel Ltd,SME,1173135,220.85,Travel & Subsistence,Administration
HM Land Registry,HM Land Registry,14/02/2017,Travel & Subsistence General Duty,Gloucester Office,Redfern Travel Ltd,SME,1173135,88.40,Travel & Subsistence,Administration
HM Land Registry,HM Land Registry,14/02/2017,Travel & Subsistence General Duty,Guarantee & Litigation,Redfern Travel Ltd,SME,1173135,157.00,Travel & Subsistence,Administration
HM Land Registry,HM Land Registry,14/02/2017,Travel & Subsistence General Duty,HR Group,Redfern Travel Ltd,SME,1173135,"1,859.90",Travel & Subsistence,Administration
HM Land Registry,HM Land Registry,14/02/2017,Travel & Subsistence General Duty,Hull Office,Redfern Travel Ltd,SME,1173135,93.30,Travel & Subsistence,Administration
HM Land Registry,HM Land Registry,14/02/2017,Travel & Subsistence General Duty,Internal Solutions Group,Redfern Travel Ltd,SME,1173135,-73.90,Travel & Subsistence,Administration
HM Land Registry,HM Land Registry,14/02/2017,Travel & Subsistence Overseas Travel,Internal Solutions Group,Redfern Travel Ltd,SME,1173135,107.30,Travel & Subsistence,Administration
HM Land Registry,HM Land Registry,14/02/2017,Travel & Subsistence General Duty,IS Service Delivery,Redfern Travel Ltd,SME,1173135,"2,211.30",Travel & Subsistence,Administration
HM Land Registry,HM Land Registry,14/02/2017,Travel & Subsistence General Duty,Leicester Office,Redfern Travel Ltd,SME,1173135,80.60,Travel & Subsistence,Administration
HM Land Registry,HM Land Registry,14/02/2017,Travel & Subsistence General Duty,Local Land Charges,Redfern Travel Ltd,SME,1173135,"6,044.88",Travel & Subsistence,Administration
HM Land Registry,HM Land Registry,14/02/2017,Travel & Subsistence Dual Workplace,Local Land Charges,Redfern Travel Ltd,SME,1173135,23.90,Travel & Subsistence,Administration
HM Land Registry,HM Land Registry,14/02/2017,Travel & Subsistence General Duty,Local Lawyer Group,Redfern Travel Ltd,SME,1173135,255.20,Travel & Subsistence,Administration
HM Land Registry,HM Land Registry,14/02/2017,Travel & Subsistence General Duty,Marketing Services Team,Redfern Travel Ltd,SME,1173135,262.00,Travel & Subsistence,Administration
HM Land Registry,HM Land Registry,14/02/2017,Travel & Subsistence General Duty,Peterborough Office,Redfern Travel Ltd,SME,1173135,118.00,Travel & Subsistence,Administration
HM Land Registry,HM Land Registry,14/02/2017,Travel & Subsistence General Duty,Product Development & Management,Redfern Travel Ltd,SME,1173135,721.60,Travel & Subsistence,Administration
HM Land Registry,HM Land Registry,14/02/2017,Travel & Subsistence General Duty,Program: Local Land Charges,Redfern Travel Ltd,SME,1173135,932.60,Travel & Subsistence,Administration
HM Land Registry,HM Land Registry,14/02/2017,Travel & Subsistence General Duty,Projects and Programme Centre,Redfern Travel Ltd,SME,1173135,183.17,Travel & Subsistence,Administration
HM Land Registry,HM Land Registry,14/02/2017,Travel & Subsistence General Duty,Property Asset Management Group,Redfern Travel Ltd,SME,1173135,"1,147.48",Travel & Subsistence,Administration
HM Land Registry,HM Land Registry,14/02/2017,Travel & Subsistence General Duty,Research & Data Mining,Redfern Travel Ltd,SME,1173135,559.60,Travel & Subsistence,Administration
HM Land Registry,HM Land Registry,14/02/2017,Travel & Subsistence General Duty,Strategy Team,Redfern Travel Ltd,SME,1173135,429.40,Travel & Subsistence,Administration
HM Land Registry,HM Land Registry,14/02/2017,Travel & Subsistence General Duty,Weymouth Office,Redfern Travel Ltd,SME,1173135,80.60,Travel & Subsistence,Administration
HM Land Registry,HM Land Registry,14/02/2017,Travel & Subsistence General Duty,Dir: Finance,Redfern Travel Ltd,SME,1173135,913.79,Travel & Subsistence,Administration
HM Land Registry,HM Land Registry,14/02/2017,Travel & Subsistence General Duty,International Business Development,Redfern Travel Ltd,SME,1173135,256.20,Travel & Subsistence,Administration
HM Land Registry,HM Land Registry,14/02/2017,Travel & Subsistence General Duty,Communications Team,Redfern Travel Ltd,SME,1173135,5.20,Travel & Subsistence,Administration
HM Land Registry,HM Land Registry,14/02/2017,Travel & Subsistence General Duty,Dir: Strategy,Redfern Travel Ltd,SME,1173135,382.70,Travel & Subsistence,Administration
HM Land Registry,HM Land Registry,14/02/2017,Travel & Subsistence General Duty,International Relations,Redfern Travel Ltd,SME,1173135,5.20,Travel & Subsistence,Administration
HM Land Registry,HM Land Registry,14/02/2017,Travel & Subsistence Overseas Travel,International Relations,Redfern Travel Ltd,SME,1173135,311.67,Travel & Subsistence,Administration
HM Land Registry,HM Land Registry,21/02/2017,Travel & Subsistence General Duty,Business Development,Redfern Travel Ltd,SME,1173959,"1,754.10",Travel & Subsistence,Administration
HM Land Registry,HM Land Registry,21/02/2017,Travel & Subsistence General Duty,Central Facilities Management Team,Redfern Travel Ltd,SME,1173959,870.10,Travel & Subsistence,Administration
HM Land Registry,HM Land Registry,21/02/2017,Travel & Subsistence Dual Workplace,Central Facilities Management Team,Redfern Travel Ltd,SME,1173959,283.50,Travel & Subsistence,Administration
HM Land Registry,HM Land Registry,21/02/2017,Travel & Subsistence General Duty,Central Operations Group,Redfern Travel Ltd,SME,1173959,"2,611.51",Travel & Subsistence,Administration
HM Land Registry,HM Land Registry,21/02/2017,Travel & Subsistence General Duty,Chief Executives Office,Redfern Travel Ltd,SME,1173959,487.30,Travel & Subsistence,Administration
HM Land Registry,HM Land Registry,21/02/2017,Travel & Subsistence General Duty,Commercial Director,Redfern Travel Ltd,SME,1173959,79.00,Travel & Subsistence,Administration
HM Land Registry,HM Land Registry,21/02/2017,Travel & Subsistence General Duty,Corp Procurement,Redfern Travel Ltd,SME,1173959,916.05,Travel & Subsistence,Administration
HM Land Registry,HM Land Registry,21/02/2017,Travel & Subsistence General Duty,Corporate Legal Services,Redfern Travel Ltd,SME,1173959,867.48,Travel & Subsistence,Administration
HM Land Registry,HM Land Registry,21/02/2017,Travel & Subsistence Dual Workplace,Corporate Legal Services,Redfern Travel Ltd,SME,1173959,101.00,Travel & Subsistence,Administration
HM Land Registry,HM Land Registry,21/02/2017,Travel & Subsistence General Duty,Data Group,Redfern Travel Ltd,SME,1173959,943.90,Travel & Subsistence,Administration
HM Land Registry,HM Land Registry,21/02/2017,Travel & Subsistence Dual Workplace,Data Group,Redfern Travel Ltd,SME,1173959,13.90,Travel & Subsistence,Administration
HM Land Registry,HM Land Registry,21/02/2017,Travel & Subsistence General Duty,Dir: (Statutory) Digital Services,Redfern Travel Ltd,SME,1173959,"1,805.95",Travel & Subsistence,Administration
HM Land Registry,HM Land Registry,21/02/2017,Travel & Subsistence General Duty,Dir: Operations,Redfern Travel Ltd,SME,1173959,373.95,Travel & Subsistence,Administration
HM Land Registry,HM Land Registry,21/02/2017,Travel & Subsistence General Duty,Director of Information Systems,Redfern Travel Ltd,SME,1173959,482.60,Travel & Subsistence,Administration
HM Land Registry,HM Land Registry,21/02/2017,Travel & Subsistence General Duty,Director of Legal Services,Redfern Travel Ltd,SME,1173959,640.33,Travel & Subsistence,Administration
HM Land Registry,HM Land Registry,21/02/2017,Travel & Subsistence General Duty,Director of Operations,Redfern Travel Ltd,SME,1173959,182.50,Travel & Subsistence,Administration
HM Land Registry,HM Land Registry,21/02/2017,Travel & Subsistence General Duty,Durham Office,Redfern Travel Ltd,SME,1173959,-492.85,Travel & Subsistence,Administration
HM Land Registry,HM Land Registry,21/02/2017,Travel & Subsistence General Duty,Finance Director,Redfern Travel Ltd,SME,1173959,373.80,Travel & Subsistence,Administration
HM Land Registry,HM Land Registry,21/02/2017,Travel & Subsistence General Duty,Finance Group,Redfern Travel Ltd,SME,1173959,394.50,Travel & Subsistence,Administration
HM Land Registry,HM Land Registry,21/02/2017,Travel & Subsistence General Duty,Fylde Office,Redfern Travel Ltd,SME,1173959,766.30,Travel & Subsistence,Administration
HM Land Registry,HM Land Registry,21/02/2017,Travel & Subsistence General Duty,HR Group,Redfern Travel Ltd,SME,1173959,"2,836.54",Travel & Subsistence,Administration
HM Land Registry,HM Land Registry,21/02/2017,Travel & Subsistence General Duty,Internal Solutions Group,Redfern Travel Ltd,SME,1173959,"1,126.28",Travel & Subsistence,Administration
HM Land Registry,HM Land Registry,21/02/2017,Travel & Subsistence Overseas Travel,Internal Solutions Group,Redfern Travel Ltd,SME,1173959,89.60,Travel & Subsistence,Administration
HM Land Registry,HM Land Registry,21/02/2017,Travel & Subsistence General Duty,IS Service Delivery,Redfern Travel Ltd,SME,1173959,"3,954.20",Travel & Subsistence,Administration
HM Land Registry,HM Land Registry,21/02/2017,Travel & Subsistence Overseas Travel,IS Service Delivery,Redfern Travel Ltd,SME,1173959,133.70,Travel & Subsistence,Administration
HM Land Registry,HM Land Registry,21/02/2017,Travel & Subsistence General Duty,Leicester Office,Redfern Travel Ltd,SME,1173959,27.20,Travel & Subsistence,Administration
HM Land Registry,HM Land Registry,21/02/2017,Travel & Subsistence General Duty,Local Land Charges,Redfern Travel Ltd,SME,1173959,"3,635.31",Travel & Subsistence,Administration
HM Land Registry,HM Land Registry,21/02/2017,Travel & Subsistence Dual Workplace,Local Land Charges,Redfern Travel Ltd,SME,1173959,68.60,Travel & Subsistence,Administration
HM Land Registry,HM Land Registry,21/02/2017,Travel & Subsistence General Duty,Local Lawyer Group,Redfern Travel Ltd,SME,1173959,435.20,Travel & Subsistence,Administration
HM Land Registry,HM Land Registry,21/02/2017,Travel & Subsistence General Duty,Nottingham Office,Redfern Travel Ltd,SME,1173959,163.30,Travel & Subsistence,Administration
HM Land Registry,HM Land Registry,21/02/2017,Travel & Subsistence General Duty,Peterborough Office,Redfern Travel Ltd,SME,1173959,129.00,Travel & Subsistence,Administration
HM Land Registry,HM Land Registry,21/02/2017,Travel & Subsistence General Duty,Product Development & Management,Redfern Travel Ltd,SME,1173959,925.89,Travel & Subsistence,Administration
HM Land Registry,HM Land Registry,21/02/2017,Travel & Subsistence General Duty,Program: Local Land Charges,Redfern Travel Ltd,SME,1173959,498.05,Travel & Subsistence,Administration
HM Land Registry,HM Land Registry,21/02/2017,Travel & Subsistence General Duty,Projects and Programme Centre,Redfern Travel Ltd,SME,1173959,305.30,Travel & Subsistence,Administration
HM Land Registry,HM Land Registry,21/02/2017,Travel & Subsistence General Duty,Property Asset Management Group,Redfern Travel Ltd,SME,1173959,754.20,Travel & Subsistence,Administration
HM Land Registry,HM Land Registry,21/02/2017,Travel & Subsistence General Duty,Research & Data Mining,Redfern Travel Ltd,SME,1173959,384.10,Travel & Subsistence,Administration
HM Land Registry,HM Land Registry,21/02/2017,Travel & Subsistence General Duty,Strategy Team,Redfern Travel Ltd,SME,1173959,"1,169.40",Travel & Subsistence,Administration
HM Land Registry,HM Land Registry,21/02/2017,Travel & Subsistence General Duty,Technology Group,Redfern Travel Ltd,SME,1173959,606.90,Travel & Subsistence,Administration
HM Land Registry,HM Land Registry,21/02/2017,Travel & Subsistence General Duty,Telford Office,Redfern Travel Ltd,SME,1173959,64.50,Travel & Subsistence,Administration
HM Land Registry,HM Land Registry,21/02/2017,Travel & Subsistence General Duty,Wales Office,Redfern Travel Ltd,SME,1173959,667.14,Travel & Subsistence,Administration
HM Land Registry,HM Land Registry,21/02/2017,Travel & Subsistence General Duty,Dir: Finance,Redfern Travel Ltd,SME,1173959,"2,152.70",Travel & Subsistence,Administration
HM Land Registry,HM Land Registry,21/02/2017,Travel & Subsistence General Duty,HR Operations,Redfern Travel Ltd,SME,1173959,171.00,Travel & Subsistence,Administration
HM Land Registry,HM Land Registry,21/02/2017,Travel & Subsistence General Duty,Registration Legal Services Group,Redfern Travel Ltd,SME,1173959,87.60,Travel & Subsistence,Administration
HM Land Registry,HM Land Registry,21/02/2017,Travel & Subsistence General Duty,Organisation & Employee Development,Redfern Travel Ltd,SME,1173959,-79.20,Travel & Subsistence,Administration
HM Land Registry,HM Land Registry,21/02/2017,Travel & Subsistence General Duty,Dir: Information Systems,Redfern Travel Ltd,SME,1173959,216.60,Travel & Subsistence,Administration
HM Land Registry,HM Land Registry,21/02/2017,Travel & Subsistence General Duty,International Business Development,Redfern Travel Ltd,SME,1173959,345.10,Travel & Subsistence,Administration
HM Land Registry,HM Land Registry,21/02/2017,Travel & Subsistence General Duty,Communications Team,Redfern Travel Ltd,SME,1173959,67.90,Travel & Subsistence,Administration
HM Land Registry,HM Land Registry,21/02/2017,Travel & Subsistence General Duty,Diversity,Redfern Travel Ltd,SME,1173959,479.00,Travel & Subsistence,Administration
HM Land Registry,HM Land Registry,21/02/2017,Travel & Subsistence General Duty,Local Lawyer Support Group,Redfern Travel Ltd,SME,1173959,307.38,Travel & Subsistence,Administration
HM Land Registry,HM Land Registry,21/02/2017,Travel & Subsistence General Duty,Dir: Strategy,Redfern Travel Ltd,SME,1173959,516.43,Travel & Subsistence,Administration
HM Land Registry,HM Land Registry,21/02/2017,Travel & Subsistence Overseas Travel,International Relations,Redfern Travel Ltd,SME,1173959,230.13,Travel & Subsistence,Administration
HM Land Registry,HM Land Registry,21/02/2017,Travel & Subsistence General Duty,Internal Audit,Redfern Travel Ltd,SME,1173959,241.10,Travel & Subsistence,Administration
HM Land Registry,HM Land Registry,28/02/2017,Travel & Subsistence General Duty,Birkenhead Office,Redfern Travel Ltd,SME,1174467,130.80,Travel & Subsistence,Administration
HM Land Registry,HM Land Registry,28/02/2017,Travel & Subsistence General Duty,Business Development,Redfern Travel Ltd,SME,1174467,"1,080.16",Travel & Subsistence,Administration
HM Land Registry,HM Land Registry,28/02/2017,Travel & Subsistence General Duty,Central Facilities Management Team,Redfern Travel Ltd,SME,1174467,"1,350.90",Travel & Subsistence,Administration
HM Land Registry,HM Land Registry,28/02/2017,Travel & Subsistence Dual Workplace,Central Facilities Management Team,Redfern Travel Ltd,SME,1174467,155.20,Travel & Subsistence,Administration
HM Land Registry,HM Land Registry,28/02/2017,Travel & Subsistence General Duty,Central Operations Group,Redfern Travel Ltd,SME,1174467,908.85,Travel & Subsistence,Administration
HM Land Registry,HM Land Registry,28/02/2017,Travel & Subsistence General Duty,Chief Executives Office,Redfern Travel Ltd,SME,1174467,631.75,Travel & Subsistence,Administration
HM Land Registry,HM Land Registry,28/02/2017,Travel & Subsistence General Duty,Commercial Director,Redfern Travel Ltd,SME,1174467,387.50,Travel & Subsistence,Administration
HM Land Registry,HM Land Registry,28/02/2017,Travel & Subsistence General Duty,Corp Procurement,Redfern Travel Ltd,SME,1174467,932.63,Travel & Subsistence,Administration
HM Land Registry,HM Land Registry,28/02/2017,Travel & Subsistence General Duty,Corporate Assurance,Redfern Travel Ltd,SME,1174467,140.00,Travel & Subsistence,Administration
HM Land Registry,HM Land Registry,28/02/2017,Travel & Subsistence General Duty,Corporate Legal Services,Redfern Travel Ltd,SME,1174467,"1,972.06",Travel & Subsistence,Administration
HM Land Registry,HM Land Registry,28/02/2017,Travel & Subsistence Dual Workplace,Corporate Legal Services,Redfern Travel Ltd,SME,1174467,201.20,Travel & Subsistence,Administration
HM Land Registry,HM Land Registry,28/02/2017,Travel & Subsistence General Duty,Coventry Office,Redfern Travel Ltd,SME,1174467,18.50,Travel & Subsistence,Administration
HM Land Registry,HM Land Registry,28/02/2017,Travel & Subsistence General Duty,Data Group,Redfern Travel Ltd,SME,1174467,811.20,Travel & Subsistence,Administration
HM Land Registry,HM Land Registry,28/02/2017,Travel & Subsistence Dual Workplace,Data Group,Redfern Travel Ltd,SME,1174467,249.50,Travel & Subsistence,Administration
HM Land Registry,HM Land Registry,28/02/2017,Travel & Subsistence General Duty,Dir: (Statutory) Digital Services,Redfern Travel Ltd,SME,1174467,"1,380.08",Travel & Subsistence,Administration
HM Land Registry,HM Land Registry,28/02/2017,Travel & Subsistence General Duty,Dir: Operations,Redfern Travel Ltd,SME,1174467,357.28,Travel & Subsistence,Administration
HM Land Registry,HM Land Registry,28/02/2017,Travel & Subsistence General Duty,Director of Information Systems,Redfern Travel Ltd,SME,1174467,126.50,Travel & Subsistence,Administration
HM Land Registry,HM Land Registry,28/02/2017,Travel & Subsistence General Duty,Director of Legal Services,Redfern Travel Ltd,SME,1174467,790.40,Travel & Subsistence,Administration
HM Land Registry,HM Land Registry,28/02/2017,Travel & Subsistence General Duty,Director of Operations,Redfern Travel Ltd,SME,1174467,703.40,Travel & Subsistence,Administration
HM Land Registry,HM Land Registry,28/02/2017,Travel & Subsistence General Duty,Durham Office,Redfern Travel Ltd,SME,1174467,301.10,Travel & Subsistence,Administration
HM Land Registry,HM Land Registry,28/02/2017,Travel & Subsistence General Duty,Finance Director,Redfern Travel Ltd,SME,1174467,6.30,Travel & Subsistence,Administration
HM Land Registry,HM Land Registry,28/02/2017,Travel & Subsistence General Duty,Finance Group,Redfern Travel Ltd,SME,1174467,245.90,Travel & Subsistence,Administration
HM Land Registry,HM Land Registry,28/02/2017,Travel & Subsistence General Duty,Fylde Office,Redfern Travel Ltd,SME,1174467,137.50,Travel & Subsistence,Administration
HM Land Registry,HM Land Registry,28/02/2017,Travel & Subsistence General Duty,Guarantee & Litigation,Redfern Travel Ltd,SME,1174467,41.10,Travel & Subsistence,Administration
HM Land Registry,HM Land Registry,28/02/2017,Travel & Subsistence General Duty,HR Group,Redfern Travel Ltd,SME,1174467,"3,492.96",Travel & Subsistence,Administration
HM Land Registry,HM Land Registry,28/02/2017,Travel & Subsistence General Duty,Hull Office,Redfern Travel Ltd,SME,1174467,70.10,Travel & Subsistence,Administration
HM Land Registry,HM Land Registry,28/02/2017,Travel & Subsistence General Duty,Internal Solutions Group,Redfern Travel Ltd,SME,1174467,742.20,Travel & Subsistence,Administration
HM Land Registry,HM Land Registry,28/02/2017,Travel & Subsistence Dual Workplace,Internal Solutions Group,Redfern Travel Ltd,SME,1174467,84.60,Travel & Subsistence,Administration
HM Land Registry,HM Land Registry,28/02/2017,Travel & Subsistence General Duty,IS Service Delivery,Redfern Travel Ltd,SME,1174467,"1,375.99",Travel & Subsistence,Administration
HM Land Registry,HM Land Registry,28/02/2017,Travel & Subsistence Dual Workplace,IS Service Delivery,Redfern Travel Ltd,SME,1174467,56.00,Travel & Subsistence,Administration
HM Land Registry,HM Land Registry,28/02/2017,Travel & Subsistence General Duty,Leicester Office,Redfern Travel Ltd,SME,1174467,83.40,Travel & Subsistence,Administration
HM Land Registry,HM Land Registry,28/02/2017,Travel & Subsistence General Duty,Local Land Charges,Redfern Travel Ltd,SME,1174467,"4,817.92",Travel & Subsistence,Administration
HM Land Registry,HM Land Registry,28/02/2017,Travel & Subsistence General Duty,Local Lawyer Group,Redfern Travel Ltd,SME,1174467,"1,363.10",Travel & Subsistence,Administration
HM Land Registry,HM Land Registry,28/02/2017,Travel & Subsistence General Duty,Marketing Services Team,Redfern Travel Ltd,SME,1174467,141.30,Travel & Subsistence,Administration
HM Land Registry,HM Land Registry,28/02/2017,Travel & Subsistence General Duty,Nottingham Office,Redfern Travel Ltd,SME,1174467,154.20,Travel & Subsistence,Administration
HM Land Registry,HM Land Registry,28/02/2017,Travel & Subsistence General Duty,Peterborough Office,Redfern Travel Ltd,SME,1174467,132.00,Travel & Subsistence,Administration
HM Land Registry,HM Land Registry,28/02/2017,Travel & Subsistence General Duty,Product Development & Management,Redfern Travel Ltd,SME,1174467,"1,030.74",Travel & Subsistence,Administration
HM Land Registry,HM Land Registry,28/02/2017,Travel & Subsistence General Duty,Program: Local Land Charges,Redfern Travel Ltd,SME,1174467,"1,458.50",Travel & Subsistence,Administration
HM Land Registry,HM Land Registry,28/02/2017,Travel & Subsistence General Duty,Projects and Programme Centre,Redfern Travel Ltd,SME,1174467,194.63,Travel & Subsistence,Administration
HM Land Registry,HM Land Registry,28/02/2017,Travel & Subsistence General Duty,Property Asset Management Group,Redfern Travel Ltd,SME,1174467,884.10,Travel & Subsistence,Administration
HM Land Registry,HM Land Registry,28/02/2017,Travel & Subsistence General Duty,Research & Data Mining,Redfern Travel Ltd,SME,1174467,448.50,Travel & Subsistence,Administration
HM Land Registry,HM Land Registry,28/02/2017,Travel & Subsistence General Duty,Strategy Team,Redfern Travel Ltd,SME,1174467,320.20,Travel & Subsistence,Administration
HM Land Registry,HM Land Registry,28/02/2017,Travel & Subsistence General Duty,Wales Office,Redfern Travel Ltd,SME,1174467,366.90,Travel & Subsistence,Administration
HM Land Registry,HM Land Registry,28/02/2017,Travel & Subsistence General Duty,Dir: Finance,Redfern Travel Ltd,SME,1174467,"2,281.06",Travel & Subsistence,Administration
HM Land Registry,HM Land Registry,28/02/2017,Travel & Subsistence General Duty,Registration Legal Services Group,Redfern Travel Ltd,SME,1174467,122.00,Travel & Subsistence,Administration
HM Land Registry,HM Land Registry,28/02/2017,Travel & Subsistence General Duty,HR Strategy & Policy,Redfern Travel Ltd,SME,1174467,105.10,Travel & Subsistence,Administration
HM Land Registry,HM Land Registry,28/02/2017,Travel & Subsistence General Duty,Dir: Information Systems,Redfern Travel Ltd,SME,1174467,180.60,Travel & Subsistence,Administration
HM Land Registry,HM Land Registry,28/02/2017,Travel & Subsistence General Duty,Communications Team,Redfern Travel Ltd,SME,1174467,62.70,Travel & Subsistence,Administration
HM Land Registry,HM Land Registry,28/02/2017,Travel & Subsistence General Duty,Diversity,Redfern Travel Ltd,SME,1174467,486.87,Travel & Subsistence,Administration
HM Land Registry,HM Land Registry,28/02/2017,Travel & Subsistence General Duty,LR Sports Council,Redfern Travel Ltd,SME,1174467,273.20,Travel & Subsistence,Administration
HM Land Registry,HM Land Registry,28/02/2017,Travel & Subsistence General Duty,Operations Assurance and Risk,Redfern Travel Ltd,SME,1174467,334.10,Travel & Subsistence,Administration
HM Land Registry,HM Land Registry,28/02/2017,Travel & Subsistence General Duty,Local Lawyer Support Group,Redfern Travel Ltd,SME,1174467,52.20,Travel & Subsistence,Administration
HM Land Registry,HM Land Registry,28/02/2017,Travel & Subsistence General Duty,Dir: Strategy,Redfern Travel Ltd,SME,1174467,160.20,Travel & Subsistence,Administration
HM Land Registry,HM Land Registry,28/02/2017,Travel & Subsistence Overseas Travel,International Relations,Redfern Travel Ltd,SME,1174467,0.60,Travel & Subsistence,Administration
HM Land Registry,HM Land Registry,28/02/2017,Travel & Subsistence General Duty,Internal Audit,Redfern Travel Ltd,SME,1174467,604.43,Travel & Subsistence,Administration
HM Land Registry,HM Land Registry,16/02/2017,Letter Post,Birkenhead Office,Royal Mail,Large,1173425,"2,018.68",Letter Post,Administration
HM Land Registry,HM Land Registry,16/02/2017,Letter Post,Coventry Office,Royal Mail,Large,1173425,"1,567.12",Letter Post,Administration
HM Land Registry,HM Land Registry,16/02/2017,Letter Post,Croydon Office,Royal Mail,Large,1173425,"2,037.45",Letter Post,Administration
HM Land Registry,HM Land Registry,16/02/2017,Letter Post,Durham Office,Royal Mail,Large,1173425,"5,719.00",Letter Post,Administration
HM Land Registry,HM Land Registry,16/02/2017,Letter Post,Fylde Office,Royal Mail,Large,1173425,"2,384.91",Letter Post,Administration
HM Land Registry,HM Land Registry,16/02/2017,Letter Post,Gloucester Office,Royal Mail,Large,1173425,"1,675.55",Letter Post,Administration
HM Land Registry,HM Land Registry,16/02/2017,Letter Post,Hull Office,Royal Mail,Large,1173425,"2,792.34",Letter Post,Administration
HM Land Registry,HM Land Registry,16/02/2017,Letter Post,IS Service Delivery,Royal Mail,Large,1173425,"19,751.58",Letter Post,Administration
HM Land Registry,HM Land Registry,16/02/2017,Letter Post,Land Charges,Royal Mail,Large,1173425,981.59,Letter Post,Administration
HM Land Registry,HM Land Registry,16/02/2017,Letter Post,Leicester Office,Royal Mail,Large,1173425,"1,597.44",Letter Post,Administration
HM Land Registry,HM Land Registry,16/02/2017,Letter Post,Nottingham Office,Royal Mail,Large,1173425,"9,122.47",Letter Post,Administration
HM Land Registry,HM Land Registry,16/02/2017,Letter Post,Peterborough Office,Royal Mail,Large,1173425,"1,849.88",Letter Post,Administration
HM Land Registry,HM Land Registry,16/02/2017,Letter Post,Plymouth Office,Royal Mail,Large,1173425,"2,944.78",Letter Post,Administration
HM Land Registry,HM Land Registry,16/02/2017,Letter Post,Telford Office,Royal Mail,Large,1173425,"1,088.49",Letter Post,Administration
HM Land Registry,HM Land Registry,16/02/2017,Letter Post,Wales Office,Royal Mail,Large,1173425,"12,566.07",Letter Post,Administration
HM Land Registry,HM Land Registry,16/02/2017,Letter Post,Weymouth Office,Royal Mail,Large,1173425,"1,467.87",Letter Post,Administration
HM Land Registry,HM Land Registry,20/02/2017,RFS Outsourced Services,Central RFS,TNT (UK) Ltd,Large,1173691,"94,424.62",Regional File Store Outsourced Services,Administration
HM Land Registry,HM Land Registry,20/02/2017,RFS Outsourced Services,Central RFS,TNT (UK) Ltd,Large,1173689,"192,043.16",Regional File Store Outsourced Services,Administration
HM Land Registry,HM Land Registry,03/02/2017,Data Network Lines,IS Service Delivery,Vodafone Corporate Ltd,Large,1169470,"60,887.10",Data Network Lines,Administration
HM Land Registry,HM Land Registry,09/02/2017,Maps & Plans Data Migration,Forward Scanning,Xerox (UK) Ltd,Large,1172588,"143,345.11",Maps & Plans Data Migration,Administration
